bitfinex/quotes_BTCUSD_20250602
["timestamp","ask_amount","ask_price","bid_price","bid_amount"]
[1748880079926,0.21164698,104440.0,104430.0,0.32056274]
[1748880080393,0.22960123,104440.0,104430.0,0.32056274]
[1748880080799,0.22960123,104440.0,104430.0,0.30141163]
[1748880081003,0.2681791,104440.0,104430.0,0.10032]
[1748880081435,0.2681791,104440.0,104430.0,0.30141163]
[1748880082058,0.20207229,104440.0,104430.0,0.10032]
[1748880082274,0.22002682,104440.0,104430.0,0.10032]
[1748880083237,0.20207229,104440.0,104430.0,0.30141144]
[1748880083852,0.22002661,104440.0,104430.0,0.30141144]
[1748880084081,0.21045183,104440.0,104430.0,0.10032]
[1748880084286,0.21045183,104440.0,104430.0,0.29183584]
[1748880084287,0.2396415,104440.0,104430.0,0.29183584]
[1748880084517,0.20207229,104440.0,104430.0,0.32056293]
[1748880084657,0.02972415,104440.0,104430.0,0.37061377]
[1748880084862,0.001,104440.0,104430.0,0.37061313]
[1748880085506,0.001,104440.0,104430.0,0.46646743]
[1748880085711,0.001,104440.0,104430.0,0.80646743]
[1748880085862,0.001,104440.0,104430.0,0.94897865]
[1748880086296,0.001,104440.0,104430.0,0.89897865]
[1748880090941,0.001,104440.0,104430.0,1.24365865]
[1748880091343,0.001,104440.0,104430.0,1.54717865]
[1748880098972,0.001,104440.0,104430.0,0.80365865]
[1748880099201,0.02014873,104440.0,104430.0,0.81110743]
[1748880099418,0.02014864,104440.0,104430.0,1.05525313]
[1748880099531,0.23079543,104440.0,104430.0,0.005]
[1748880099745,0.25566561,104440.0,104430.0,0.005]
[1748880099954,0.25566561,104440.0,104430.0,0.21566677]
[1748880100370,0.24609111,104440.0,104430.0,0.19651584]
[1748880100576,0.24609111,104440.0,104430.0,0.21566723]
[1748880100988,0.24609111,104440.0,104430.0,0.20609163]
[1748880101229,0.24609111,104440.0,104430.0,0.21566733]
[1748880101433,0.24609111,104440.0,104430.0,0.22524293]
[1748880101661,0.24609111,104440.0,104430.0,0.21566733]
[1748880102451,0.24609111,104440.0,104430.0,0.22524275]
[1748880102672,0.24609111,104440.0,104430.0,0.21566733]
[1748880102877,0.24609111,104440.0,104430.0,0.22524293]
[1748880103065,0.23651633,104440.0,104430.0,0.20609163]
[1748880103267,0.23651633,104440.0,104430.0,0.01457579]
[1748880103501,0.23651633,104440.0,104430.0,0.005]
[1748880103729,0.25795718,104440.0,104430.0,0.005]
[1748880103939,0.20113015,104410.0,104400.0,0.55892085]
[1748880104160,0.24039777,104410.0,104400.0,0.2130993]
[1748880104377,0.00957799,104400.0,104390.0,0.34638188]
[1748880104604,0.01915625,104400.0,104390.0,0.65050233]
[1748880104810,0.00957771,104400.0,104390.0,0.65050233]
[1748880105021,0.02873396,104400.0,104390.0,0.65050233]
[1748880105459,0.03831232,104400.0,104390.0,0.74301355]
[1748880105667,0.03831232,104400.0,104390.0,0.65050233]
[1748880105891,0.03831232,104400.0,104390.0,0.65550233]
[1748880105892,0.02020399,104400.0,104390.0,0.65550233]
[1748880106110,0.00104829,104400.0,104390.0,0.65550233]
[1748880106709,0.010626,104400.0,104390.0,0.65550233]
[1748880106913,0.00104829,104400.0,104390.0,0.65550233]
[1748880107032,0.00104829,104400.0,104390.0,0.66050233]
[1748880107233,0.010626,104400.0,104390.0,0.66050233]
[1748880108050,0.04960899,104400.0,104390.0,0.66050233]
[1748880108417,0.05918717,104400.0,104390.0,0.66050233]
[1748880108715,0.05918708,104400.0,104390.0,0.66050233]
[1748880109221,0.06876525,104400.0,104390.0,0.66050233]
[1748880109428,0.04960909,104400.0,104390.0,0.66050233]
[1748880111091,0.05918708,104400.0,104390.0,0.66050233]
[1748880113369,0.04960909,104400.0,104390.0,0.66050233]
[1748880113603,0.04003128,104400.0,104390.0,0.66050233]
[1748880114017,0.04960909,104400.0,104390.0,0.66050233]
[1748880114426,0.04003128,104400.0,104390.0,0.66050233]
[1748880114635,0.04960909,104400.0,104390.0,0.66050233]
[1748880115051,0.06876553,104400.0,104390.0,0.66050233]
[1748880115268,0.26033704,104400.0,104390.0,0.21110443]
[1748880115482,0.30552607,104400.0,104390.0,0.51442443]
[1748880115687,0.30552607,104400.0,104390.0,0.53358288]
[1748880115893,0.30552607,104400.0,104390.0,0.01]
[1748880116099,0.30552607,104400.0,104390.0,0.005]
[1748880116100,0.29494799,104400.0,104390.0,0.005]
[1748880116313,0.01915799,104390.0,104380.0,0.6196802]
[1748880116515,0.02873717,104390.0,104380.0,0.6196802]
[1748880116650,0.02873717,104390.0,104380.0,0.6360402]
[1748880117271,0.02873717,104390.0,104380.0,0.3328402]
[1748880117469,0.02873717,104390.0,104380.0,0.6359202]
[1748880117725,0.02873681,104390.0,104380.0,0.6359202]
[1748880117985,0.02873681,104390.0,104380.0,0.6517202]
[1748880118393,0.02973681,104390.0,104380.0,0.6517202]
[1748880118542,0.02015763,104390.0,104380.0,0.6547202]
[1748880118738,0.001,104390.0,104380.0,0.2554802]
[1748880118981,0.01057881,104390.0,104380.0,0.5584402]
[1748880119207,0.02015772,104390.0,104380.0,0.5584402]
[1748880119401,0.03931599,104390.0,104380.0,0.5584402]
[1748880119855,0.02973681,104390.0,104380.0,0.5584402]
[1748880120073,0.03931608,104390.0,104380.0,0.5584402]
[1748880120288,0.04835745,104400.0,104390.0,0.19158923]
[1748880120510,0.04835745,104400.0,104390.0,0.20116859]
[1748880120950,0.04835745,104400.0,104390.0,0.21074786]
[1748880121390,0.009579,104390.0,104380.0,0.55543956]
[1748880121621,0.01915818,104390.0,104380.0,0.55543956]
[1748880122503,0.01915818,104390.0,104380.0,0.55843956]
[1748880122731,0.02015791,104390.0,104380.0,0.55843956]
[1748880122990,0.02973681,104390.0,104380.0,0.55843956]
[1748880123454,0.23090596,104390.0,104380.0,0.52976758]
[1748880123714,0.001,104390.0,104380.0,0.66059864]
[1748880124163,0.001,104390.0,104380.0,0.75645294]
[1748880124388,0.02015772,104390.0,104380.0,0.36098172]
[1748880124601,0.23090568,104390.0,104380.0,0.54006777]
[1748880124840,0.23090568,104390.0,104380.0,0.54964769]
[1748880125056,0.02973699,104390.0,104380.0,0.55922742]
[1748880125281,0.22132622,104390.0,104380.0,0.54960769]
[1748880125546,0.02973699,104390.0,104380.0,0.55918742]
[1748880125776,0.24041623,104390.0,104380.0,0.0352]
[1748880126008,0.24041623,104390.0,104380.0,0.003]
[1748880126899,0.25838003,104390.0,104380.0,0.003]
[1748880127125,0.24041623,104390.0,104380.0,0.003]
[1748880127571,0.25838004,104390.0,104380.0,0.003]
[1748880127786,0.24041623,104390.0,104370.0,0.65450367]
[1748880127997,0.23941623,104390.0,104370.0,0.67070367]
[1748880128212,0.23941623,104390.0,104370.0,0.67965647]
[1748880128441,0.23941623,104390.0,104380.0,0.003]
[1748880128674,0.25390936,104390.0,104380.0,0.20418795]
[1748880128910,0.25390936,104390.0,104380.0,0.20118795]
[1748880128911,0.23494556,104390.0,104380.0,0.20118795]
[1748880129122,0.23083723,104390.0,104380.0,0.20118795]
[1748880129373,0.22983723,104390.0,104380.0,0.22034806]
[1748880129581,0.22983723,104390.0,104380.0,0.21688795]
[1748880129791,0.23083723,104390.0,104380.0,0.02528037]
[1748880130037,0.24880062,104390.0,104380.0,0.21688795]
[1748880130251,0.23083723,104390.0,104380.0,0.22646814]
[1748880130465,0.02966873,104390.0,104380.0,0.26182797]
[1748880130751,0.03924736,104390.0,104380.0,0.2734077]
[1748880130971,0.04882627,104390.0,104380.0,0.2734077]
[1748880131181,0.03924736,104390.0,104380.0,0.2734077]
[1748880131397,0.03924736,104390.0,104380.0,0.35989849]
[1748880131398,0.05840526,104390.0,104380.0,0.35989849]
[1748880131616,0.0763677,104390.0,104380.0,0.35989849]
[1748880131829,0.05840517,104390.0,104380.0,0.35989849]
[1748880132107,0.07636784,104390.0,104380.0,0.35989849]
[1748880132323,0.04882617,104390.0,104380.0,0.35989849]
[1748880132544,0.05840526,104390.0,104380.0,0.35989849]
[1748880133481,0.03924736,104390.0,104380.0,0.35989849]
[1748880133699,0.02966873,104390.0,104380.0,0.45575279]
[1748880134987,0.04762897,104390.0,104380.0,0.45575279]
[1748880135179,0.02966873,104390.0,104380.0,0.45575279]
[1748880135407,0.04762897,104390.0,104380.0,0.45575279]
[1748880135830,0.02966873,104390.0,104380.0,0.45575279]
[1748880136036,0.04762906,104390.0,104380.0,0.45575279]
[1748880136241,0.02966873,104390.0,104380.0,0.45575279]
[1748880136571,0.04762904,104390.0,104380.0,0.45575279]
[1748880136775,0.02966873,104390.0,104380.0,0.45575279]
[1748880137224,0.05840563,104390.0,104380.0,0.369262]
[1748880137385,0.04882636,104390.0,104380.0,0.369262]
[1748880137587,0.06678759,104390.0,104380.0,0.369262]
[1748880137765,0.05840572,104390.0,104380.0,0.369262]
[1748880137985,0.05840554,104390.0,104380.0,0.369262]
[1748880138902,0.04882645,104390.0,104380.0,0.369262]
[1748880139138,0.04882626,104390.0,104380.0,0.369262]
[1748880139347,0.24999449,104390.0,104380.0,0.24466814]
[1748880139550,0.26915368,104390.0,104380.0,0.11404]
[1748880139772,0.24041678,104390.0,104380.0,0.29902795]
[1748880140009,0.24041678,104390.0,104380.0,0.30860814]
[1748880140248,0.24041678,104390.0,104380.0,0.29902795]
[1748880140484,0.25838013,104390.0,104380.0,0.29902795]
[1748880140690,0.24041678,104390.0,104380.0,0.29902795]
[1748880141178,0.25838013,104390.0,104380.0,0.33368787]
[1748880141394,0.267959,104390.0,104380.0,0.34040805]
[1748880141608,0.24999569,104390.0,104380.0,0.34040823]
[1748880142028,0.24999569,104390.0,104380.0,0.34998824]
[1748880142232,0.2404166,104390.0,104380.0,0.34040823]
[1748880142405,0.25837986,104390.0,104380.0,0.35956834]
[1748880142634,0.0572109,104390.0,104380.0,0.44501134]
[1748880142838,0.07636917,104390.0,104380.0,0.45459107]
[1748880143041,0.05840591,104390.0,104380.0,0.45459107]
[1748880143452,0.26915323,104390.0,104380.0,0.27330826]
[1748880143661,0.2595746,104390.0,104380.0,0.24456796]
[1748880143870,0.24999569,104390.0,104380.0,0.002]
[1748880144123,0.23083742,104390.0,104380.0,0.19360758]
[1748880144326,0.23083742,104390.0,104380.0,0.002]
[1748880144961,0.20118777,104380.0,104370.0,0.0319]
[1748880145170,0.28192973,104390.0,104380.0,0.19160758]
[1748880145171,0.25227817,104390.0,104380.0,0.19160758]
[1748880145382,0.0620067,104390.0,104380.0,0.00958019]
[1748880145589,0.24999522,104390.0,104380.0,0.25224788]
[1748880146004,0.24899522,104390.0,104380.0,0.2618278]
[1748880147042,0.24899522,104390.0,104380.0,0.2638278]
[1748880147464,0.23941641,104390.0,104380.0,0.25424788]
[1748880147669,0.26220681,104390.0,104380.0,0.24466787]
[1748880147876,0.26320681,104390.0,104380.0,0.24466787]
[1748880149181,0.2632192,104390.0,104380.0,0.24466787]
[1748880150191,0.2632192,104390.0,104380.0,0.25424788]
[1748880150962,0.08120851,104390.0,104380.0,0.31895286]
[1748880151205,0.29197145,104390.0,104380.0,0.2638277]
[1748880151533,0.29197145,104390.0,104380.0,0.22550758]
[1748880151534,0.28239301,104390.0,104380.0,0.22550758]
[1748880151761,0.27281374,104390.0,104380.0,0.24466814]
[1748880152691,0.27281594,104390.0,104380.0,0.25424824]
[1748880153347,0.27281594,104390.0,104380.0,0.26382816]
[1748880153748,0.27281594,104390.0,104380.0,0.31033162]
[1748880154362,0.24041678,104390.0,104380.0,0.31033162]
[1748880154575,0.24041678,104390.0,104380.0,0.3007517]
[1748880154714,0.24041678,104390.0,104380.0,0.25424824]
[1748880154940,0.25365986,104390.0,104380.0,0.0339]
[1748880155145,0.25365986,104390.0,104380.0,0.22550758]
[1748880155370,0.25365986,104390.0,104380.0,0.0339]
[1748880155861,0.26820071,104390.0,104380.0,0.002]
[1748880156101,0.35810866,104390.0,104380.0,0.002]
[1748880156258,0.35120866,104390.0,104380.0,0.002]
[1748880156529,0.3512144,104390.0,104380.0,0.002]
[1748880157666,0.3581144,104390.0,104380.0,0.002]
[1748880158872,0.20118777,104380.0,104370.0,0.0158]
[1748880159159,0.21078788,104370.0,104360.0,0.64108813]
[1748880159337,0.00958102,104370.0,104360.0,0.35801172]
[1748880159589,0.03832407,104370.0,104360.0,0.36759329]
[1748880160194,0.03832407,104370.0,104360.0,0.3765493]
[1748880160366,0.03832407,104370.0,104360.0,0.36759329]
[1748880160566,0.03932407,104370.0,104360.0,0.36759329]
[1748880160785,0.23095001,104370.0,104360.0,0.34843006]
[1748880160918,0.23095001,104370.0,104360.0,0.36759347]
[1748880161410,0.23095001,104370.0,104360.0,0.36759283]
[1748880161613,0.23095001,104370.0,104360.0,0.27175283]
[1748880161773,0.23095001,104370.0,104360.0,0.28070876]
[1748880161939,0.03932407,104370.0,104360.0,0.27275283]
[1748880162144,0.001,104370.0,104360.0,0.36526405]
[1748880162387,0.02974186,104370.0,104360.0,0.36526405]
[1748880162584,0.02974177,104370.0,104360.0,0.36526405]
[1748880162785,0.001,104370.0,104360.0,0.36526405]
[1748880163039,0.001,104370.0,104360.0,0.37422468]
[1748880163256,0.01058065,104370.0,104360.0,0.36526405]
[1748880163474,0.001,104370.0,104360.0,0.470079]
[1748880163719,0.001,104370.0,104360.0,0.51111835]
[1748880163925,0.001,104370.0,104360.0,0.46111835]
[1748880166617,0.001,104370.0,104360.0,0.36860713]
[1748880167900,0.01058047,104370.0,104360.0,0.36860713]
[1748880168054,0.02016139,104370.0,104360.0,0.36860713]
[1748880168268,0.02016121,104370.0,104360.0,0.37756734]
[1748880168471,0.02016112,104370.0,104360.0,0.36860713]
[1748880168635,0.02974195,104370.0,104360.0,0.36860713]
[1748880168881,0.02016112,104370.0,104360.0,0.36860713]
[1748880169078,0.02974186,104370.0,104360.0,0.36860713]
[1748880169274,0.02016103,104370.0,104360.0,0.36860713]
[1748880169476,0.02016103,104370.0,104360.0,0.37756747]
[1748880170099,0.02016103,104370.0,104360.0,0.37756745]
[1748880170303,0.01058047,104370.0,104360.0,0.36860713]
[1748880170774,0.01058047,104370.0,104360.0,0.37754912]
[1748880170948,0.01058047,104370.0,104360.0,0.36860713]
[1748880171367,0.01058047,104370.0,104360.0,0.46372713]
[1748880171772,0.001,104370.0,104360.0,0.55623835]
[1748880175816,0.01058047,104370.0,104360.0,0.46372713]
[1748880176019,0.001,104370.0,104360.0,0.46372713]
[1748880177780,0.01058056,104370.0,104360.0,0.46372713]
[1748880177916,0.02016121,104370.0,104360.0,0.46372713]
[1748880178324,0.02974195,104370.0,104360.0,0.46372713]
[1748880179119,0.02016121,104370.0,104360.0,0.46372713]
[1748880179447,0.02974214,104370.0,104360.0,0.46372713]
[1748880179648,0.02974204,104370.0,104360.0,0.46372713]
[1748880181103,0.03932315,104370.0,104360.0,0.3487096]
[1748880181451,0.03932315,104370.0,104360.0,0.35829117]
[1748880181643,0.04890435,104370.0,104360.0,0.35829117]
[1748880182606,0.24053029,104370.0,104360.0,0.35829117]
[1748880182824,0.2645834,104370.0,104360.0,0.2248443]
[1748880183076,0.25500229,104370.0,104360.0,0.001]
[1748880183423,0.21080844,104360.0,104350.0,0.0158]
[1748880183622,0.26279674,104360.0,104350.0,0.21704571]
[1748880183856,0.26279674,104360.0,104350.0,0.25201133]
[1748880184071,0.01916359,104360.0,104350.0,0.2711764]
[1748880184285,0.2542665,104370.0,104360.0,0.25239001]
[1748880184521,0.20222587,104360.0,104350.0,0.23324571]
[1748880184736,0.20222642,104360.0,104350.0,0.22414616]
[1748880184958,0.20222642,104360.0,104350.0,0.23372911]
[1748880185203,0.20222642,104360.0,104350.0,0.03248349]
[1748880185400,0.24510139,104360.0,104350.0,0.2337292]
[1748880185599,0.1926443,104360.0,104350.0,0.03248349]
[1748880185830,0.1926443,104360.0,104350.0,0.22414616]
[1748880186033,0.1926443,104360.0,104350.0,0.03248349]
[1748880186167,0.23346106,104360.0,104350.0,0.03248349]
[1748880186622,0.23346106,104360.0,104350.0,0.24331224]
[1748880186976,0.1916443,104360.0,104350.0,0.24331224]
[1748880187193,0.1926443,104360.0,104350.0,0.24331224]
[1748880187799,0.1926443,104360.0,104350.0,0.23372929]
[1748880188241,0.1926443,104360.0,104350.0,0.24331233]
[1748880189495,0.1926443,104360.0,104350.0,0.03248349]
[1748880189703,0.23456028,104360.0,104350.0,0.22414616]
[1748880190077,0.20124562,104350.0,104340.0,0.22348104]
[1748880190278,0.20124562,104350.0,104340.0,0.2332101]
[1748880190988,0.20124562,104350.0,104340.0,0.22362605]
[1748880191143,0.20224562,104350.0,104340.0,0.22362605]
[1748880191322,0.25066915,104350.0,104340.0,0.22362605]
[1748880191702,0.25066915,104350.0,104340.0,0.23260531]
[1748880191954,0.25066915,104350.0,104340.0,0.2332101]
[1748880192684,0.25066915,104350.0,104340.0,0.24218934]
[1748880192914,0.25066915,104350.0,104340.0,0.04092425]
[1748880193123,0.260252,104350.0,104340.0,0.23321001]
[1748880193347,0.04942353,104350.0,104340.0,0.25237719]
[1748880193546,0.02974755,104350.0,104340.0,0.26196059]
[1748880193900,0.2405763,104350.0,104340.0,0.26196059]
[1748880194193,0.22141142,104350.0,104340.0,0.03194501]
[1748880194394,0.25878001,104350.0,104340.0,0.00014501]
[1748880194733,0.00958487,104330.0,104320.0,0.21088919]
[1748880194935,0.01916956,104330.0,104320.0,0.23005995]
[1748880195139,0.03929615,104330.0,104320.0,0.23005995]
[1748880195516,0.04888047,104330.0,104320.0,0.23005995]
[1748880196127,0.03929514,104330.0,104320.0,0.23005995]
[1748880196335,0.19168104,104340.0,104330.0,0.2204532]
[1748880196336,0.00958359,104340.0,104330.0,0.2204532]
[1748880196543,0.02875076,104340.0,104330.0,0.2204532]
[1748880197166,0.0191669,104340.0,104330.0,0.2204532]
[1748880197571,0.02016681,104340.0,104330.0,0.2204532]
[1748880197775,0.03075049,104340.0,104330.0,0.2514532]
[1748880197974,0.0491099,104340.0,104330.0,0.2514532]
[1748880198186,0.0395264,104340.0,104330.0,0.2514532]
[1748880198387,0.03952631,104340.0,104330.0,0.2514532]
[1748880198587,0.04910971,104340.0,104330.0,0.2514532]
[1748880198973,0.02116662,104340.0,104330.0,0.2514532]
[1748880199146,0.01158322,104340.0,104330.0,0.2514532]
[1748880199345,0.01964921,104350.0,104340.0,0.21084886]
[1748880199547,0.21134008,104350.0,104340.0,0.21084886]
[1748880199755,0.21134008,104350.0,104340.0,0.22043254]
[1748880200011,0.01006617,104350.0,104340.0,0.22043254]
[1748880200214,0.00048341,104350.0,104340.0,0.27099953]
[1748880200498,0.0100659,104350.0,104340.0,0.31726942]
[1748880200646,0.02364857,104350.0,104340.0,0.31726942]
[1748880200823,0.02364857,104350.0,104340.0,0.27099953]
[1748880201039,0.00448341,104350.0,104340.0,0.27099953]
[1748880201243,0.0140659,104350.0,104340.0,0.27099953]
[1748880201443,0.02364857,104350.0,104340.0,0.27099953]
[1748880202088,0.02364847,104350.0,104340.0,0.27099953]
[1748880202240,0.03323132,104350.0,104340.0,0.27099953]
[1748880202930,0.04281427,104350.0,104340.0,0.27099953]
[1748880204273,0.03323132,104350.0,104340.0,0.27099953]
[1748880204480,0.03323142,104350.0,104340.0,0.27099953]
[1748880204905,0.03323132,104350.0,104340.0,0.27099953]
[1748880205320,0.00448341,104350.0,104340.0,0.35697742]
[1748880205545,0.00448341,104350.0,104340.0,0.45283172]
[1748880206147,0.00148341,104350.0,104340.0,0.36685383]
[1748880206591,0.0110659,104350.0,104340.0,0.36685383]
[1748880206767,0.00248341,104350.0,104340.0,0.36885383]
[1748880207016,0.02064829,104350.0,104340.0,0.36885383]
[1748880207231,0.01106571,104350.0,104340.0,0.36885383]
[1748880207434,0.03023105,104350.0,104340.0,0.36885383]
[1748880207637,0.02064829,104350.0,104340.0,0.36885383]
[1748880208017,0.03023105,104350.0,104340.0,0.36885383]
[1748880208264,0.0206482,104350.0,104340.0,0.36885383]
[1748880208475,0.0216482,104350.0,104340.0,0.36885383]
[1748880208702,0.24614044,104350.0,104340.0,0.23466509]
[1748880208909,0.24614044,104350.0,104340.0,0.33932886]
[1748880209116,0.21084849,104340.0,104330.0,0.33744785]
[1748880209292,0.02875076,104340.0,104330.0,0.34703245]
[1748880209534,0.02875067,104340.0,104330.0,0.34703245]
[1748880209939,0.0191669,104340.0,104330.0,0.34703245]
[1748880210154,0.00048341,104350.0,104340.0,0.26161576]
[1748880210375,0.00048341,104350.0,104340.0,0.42285336]
[1748880210581,0.01006571,104350.0,104340.0,0.42285336]
[1748880210784,0.00048341,104350.0,104340.0,0.42285336]
[1748880210959,0.00048341,104350.0,104340.0,0.72469336]
[1748880211191,0.00048341,104350.0,104340.0,0.65931006]
[1748880211399,0.0100659,104350.0,104340.0,0.65931006]
[1748880211607,0.03023142,104350.0,104340.0,0.66131006]
[1748880212022,0.0110659,104350.0,104340.0,0.66131006]
[1748880212230,0.00148341,104350.0,104340.0,0.66131006]
[1748880212433,0.0110658,104350.0,104340.0,0.66131006]
[1748880212667,0.02064829,104350.0,104340.0,0.66131006]
[1748880213493,0.0110659,104350.0,104340.0,0.66131006]
[1748880214322,0.02064857,104350.0,104340.0,0.66131006]
[1748880214533,0.02064848,104350.0,104340.0,0.66131006]
[1748880215271,0.03023133,104350.0,104340.0,0.66131006]
[1748880215513,0.03981428,104350.0,104340.0,0.66131006]
[1748880215888,0.03023133,104350.0,104340.0,0.66131006]
[1748880216344,0.03981428,104350.0,104340.0,0.66131006]
[1748880216558,0.03023133,104350.0,104340.0,0.66131006]
[1748880216792,0.02064848,104350.0,104340.0,0.66131006]
[1748880216988,0.0110659,104350.0,104340.0,0.66131006]
[1748880217368,0.02064857,104350.0,104340.0,0.66131006]
[1748880218144,0.03023152,104350.0,104340.0,0.66131006]
[1748880218757,0.22189419,104350.0,104340.0,0.55587273]
[1748880218992,0.22189419,104350.0,104340.0,0.56545632]
[1748880219764,0.03023152,104350.0,104340.0,0.57503972]
[1748880219964,0.02064857,104350.0,104340.0,0.57503972]
[1748880220219,0.00148341,104350.0,104340.0,0.57503972]
[1748880220443,0.01106571,104350.0,104340.0,0.57503972]
[1748880220899,0.00148341,104350.0,104340.0,0.57503972]
[1748880221356,0.0110659,104350.0,104340.0,0.57503972]
[1748880222175,0.02064857,104350.0,104340.0,0.57503972]
[1748880224202,0.00148341,104350.0,104340.0,0.57503972]
[1748880224392,0.02064848,104350.0,104340.0,0.66122156]
[1748880224595,0.02064848,104350.0,104340.0,0.57503972]
[1748880224811,0.02064848,104350.0,104340.0,0.67011972]
[1748880225221,0.0110659,104350.0,104340.0,0.67011972]
[1748880225926,0.00148341,104350.0,104340.0,0.67011972]
[1748880226346,0.0110658,104350.0,104340.0,0.67011972]
[1748880226550,0.00148341,104350.0,104340.0,0.67011972]
[1748880227129,0.0110658,104350.0,104340.0,0.67011972]
[1748880227627,0.01106571,104350.0,104340.0,0.67011972]
[1748880229385,0.00148341,104350.0,104340.0,0.67011972]
[1748880230949,0.00148341,104350.0,104340.0,0.75630156]
[1748880231374,0.00148341,104350.0,104340.0,0.67011972]
[1748880232503,0.01106571,104350.0,104340.0,0.67011972]
[1748880232678,0.00148341,104350.0,104340.0,0.67011972]
[1748880234405,0.00148341,104350.0,104340.0,0.76597402]
[1748880234572,0.00148341,104350.0,104340.0,0.81597402]
[1748880235202,0.00148341,104350.0,104340.0,0.76597402]
[1748880237360,0.0110658,104350.0,104340.0,0.76597402]
[1748880237572,0.00148341,104350.0,104340.0,0.76597402]
[1748880244298,0.0110658,104350.0,104340.0,0.76597402]
[1748880244674,0.00148341,104350.0,104340.0,0.76597402]
[1748880245111,0.0110658,104350.0,104340.0,0.76597402]
[1748880245352,0.00148341,104350.0,104340.0,0.76597402]
[1748880245814,0.01106571,104350.0,104340.0,0.76597402]
[1748880246277,0.01106571,104350.0,104340.0,0.46413402]
[1748880246503,0.05645783,104350.0,104340.0,0.73393402]
[1748880246726,0.04687507,104350.0,104340.0,0.63807972]
[1748880246953,0.24105942,104350.0,104340.0,0.6284965]
[1748880247231,0.03981362,104350.0,104340.0,0.63807935]
[1748880247689,0.03023077,104350.0,104340.0,0.65397935]
[1748880247922,0.03023077,104350.0,104340.0,0.66927935]
[1748880248157,0.03981362,104350.0,104340.0,0.66927935]
[1748880248608,0.03023077,104350.0,104340.0,0.66927935]
[1748880249334,0.03981362,104350.0,104340.0,0.66927935]
[1748880249831,0.03981353,104350.0,104340.0,0.66927935]
[1748880250529,0.03023077,104350.0,104340.0,0.66927935]
[1748880252345,0.03023068,104350.0,104340.0,0.66927935]
[1748880253447,0.00148341,104350.0,104340.0,0.66927935]
[1748880253694,0.00148341,104350.0,104340.0,0.85123145]
[1748880253902,0.00148341,104350.0,104340.0,0.90123145]
[1748880254125,0.00148341,104350.0,104340.0,0.85123145]
[1748880254343,0.00148341,104350.0,104340.0,0.76513365]
[1748880254556,0.00148341,104350.0,104340.0,0.81513365]
[1748880254779,0.00148341,104350.0,104340.0,0.76513365]
[1748880261645,0.01106571,104350.0,104340.0,0.76513365]
[1748880261848,0.00148341,104350.0,104340.0,0.76513365]
[1748880262747,0.03023114,104350.0,104340.0,0.36865365]
[1748880262930,0.02064829,104350.0,104340.0,0.76457365]
[1748880263134,0.03023105,104350.0,104340.0,0.76457365]
[1748880263337,0.02064829,104350.0,104340.0,0.46321365]
[1748880263512,0.02064829,104350.0,104340.0,0.76457365]
[1748880263713,0.03023096,104350.0,104340.0,0.76457365]
[1748880263938,0.02064829,104350.0,104340.0,0.76457365]
[1748880264168,0.0206482,104350.0,104340.0,0.76457365]
[1748880265116,0.03023087,104350.0,104340.0,0.76457365]
[1748880265346,0.0206482,104350.0,104340.0,0.76457365]
[1748880265570,0.03023087,104350.0,104340.0,0.76457365]
[1748880266073,0.0206482,104350.0,104340.0,0.76457365]
[1748880266292,0.01106571,104350.0,104340.0,0.76457365]
[1748880266438,0.00148341,104350.0,104340.0,0.76457365]
[1748880266657,0.00148341,104350.0,104340.0,0.85708487]
[1748880266856,0.00148341,104350.0,104340.0,0.36865365]
[1748880267057,0.00148341,104350.0,104340.0,0.76457365]
[1748880270613,0.00148341,104350.0,104340.0,1.10957365]
[1748880273515,0.00148341,104350.0,104340.0,1.49957365]
[1748880273726,0.00148341,104350.0,104340.0,1.45876817]
[1748880273919,0.00148341,104350.0,104340.0,1.59208487]
[1748880274153,0.00148341,104350.0,104340.0,1.60127851]
[1748880274558,0.00148341,104350.0,104340.0,2.19352782]
[1748880274759,0.00148341,104350.0,104340.0,2.19652782]
[1748880274974,0.00048341,104350.0,104340.0,2.19452782]
[1748880275103,0.00048341,104350.0,104340.0,1.69378314]
[1748880275314,0.00148341,104350.0,104340.0,1.69378314]
[1748880276164,0.00148341,104350.0,104340.0,1.29786314]
[1748880276365,0.00148341,104350.0,104340.0,1.56677936]
[1748880276992,0.00148341,104350.0,104340.0,1.61677936]
[1748880277220,0.00148341,104350.0,104340.0,2.01677936]
[1748880277438,0.00148341,104350.0,104340.0,2.57752404]
[1748880277741,0.03809477,104400.0,104390.0,0.23622649]
[1748880277865,0.03809477,104400.0,104390.0,0.76980601]
[1748880278066,0.05016514,104420.0,104410.0,0.22028429]
[1748880278264,0.11741653,104420.0,104410.0,0.31484429]
[1748880278593,0.0703048,104420.0,104410.0,0.31484429]
[1748880278796,0.03386514,104430.0,104420.0,0.22026319]
[1748880279005,0.29618266,104430.0,104420.0,0.20111079]
[1748880279230,0.30940328,104430.0,104420.0,0.39584]
[1748880279432,0.24316714,104430.0,104420.0,0.39584]
[1748880279652,0.25798711,104440.0,104430.0,0.20109163]
[1748880279853,0.25798711,104440.0,104420.0,0.62567916]
[1748880279854,0.01915065,104430.0,104420.0,0.62567916]
[1748880280479,0.21066695,104430.0,104420.0,0.60652713]
[1748880280678,0.22981807,104430.0,104420.0,0.61610338]
[1748880280878,0.22986644,104430.0,104420.0,0.61610338]
[1748880281203,0.22986644,104430.0,104420.0,0.22026338]
[1748880281419,0.24086644,104430.0,104420.0,0.61706338]
[1748880281597,0.05477481,104430.0,104420.0,0.62763944]
[1748880281804,0.0739263,104430.0,104420.0,0.62763944]
[1748880282013,0.02604837,104430.0,104420.0,0.81600496]
[1748880282219,0.02604837,104430.0,104420.0,0.84650496]
[1748880282830,0.03502539,104430.0,104420.0,0.84650496]
[1748880283270,0.02604837,104430.0,104420.0,0.84650496]
[1748880283485,0.01104837,104430.0,104420.0,0.89550496]
[1748880283690,0.00304837,104430.0,104420.0,0.89450496]
[1748880284093,0.01504837,104430.0,104420.0,0.89550496]
[1748880284300,0.02402495,104430.0,104420.0,0.89550496]
[1748880284506,0.00304837,104430.0,104420.0,0.84450496]
[1748880284910,0.00504837,104430.0,104420.0,0.84450496]
[1748880285731,0.00504837,104430.0,104420.0,0.44870496]
[1748880285937,0.00504837,104430.0,104420.0,0.34661768]
[1748880285938,0.04275078,104430.0,104420.0,0.34661768]
[1748880286154,0.04275078,104430.0,104420.0,0.74056]
[1748880286155,0.21571551,104430.0,104420.0,0.74056]
[1748880286367,0.23211551,104430.0,104420.0,0.94167079]
[1748880286772,0.23211551,104430.0,104420.0,0.96082374]
[1748880286977,0.23211551,104430.0,104420.0,0.97039989]
[1748880286978,0.21571551,104430.0,104420.0,0.97039989]
[1748880287187,0.00504837,104430.0,104420.0,1.06291111]
[1748880287386,0.00504837,104430.0,104420.0,1.10388717]
[1748880287601,0.00504837,104430.0,104420.0,1.24974147]
[1748880287906,0.00504837,104430.0,104420.0,1.19974147]
[1748880288259,0.014025,104430.0,104420.0,1.19974147]
[1748880288459,0.01402499,104430.0,104420.0,1.19974147]
[1748880288665,0.00504837,104430.0,104420.0,1.19974147]